fUST/lending_fUST_20240816
["ID","MTS","AMOUNT","RATE_DAILY","PERIOD"]
[335020210,1723746661832,-505.10991823,0.00047123,120]
[335020211,1723746661847,-500.0,0.00047123,120]
[335020212,1723746661863,-625.15038743,0.00047123,120]
[335020213,1723746661877,-500.0,0.00047123,120]
[335020214,1723746661968,-500.0,0.00047123,120]
[335020215,1723746661978,-500.0,0.00047123,120]
[335020216,1723746661990,-500.0,0.00047123,120]
[335020217,1723746662000,-500.0,0.00047123,120]
[335020218,1723746662010,-500.0,0.00047123,120]
[335020219,1723746662019,-500.0,0.00047123,120]
[335020220,1723746662030,-500.0,0.00047123,120]
[335020221,1723746662039,-500.0,0.00047123,120]
[335020222,1723746662049,-500.0,0.00047123,120]
[335020223,1723746662058,-500.0,0.00047123,120]
[335020224,1723746662068,-500.0,0.00047123,120]
[335020225,1723746662078,-500.0,0.00047123,120]
[335020226,1723746662087,-517.32883689,0.00047123,120]
[335020227,1723746662097,-500.0,0.00047123,120]
[335020228,1723746662107,-500.0,0.00047123,120]
[335020229,1723746662117,-500.0,0.00047123,120]
[335020230,1723746662126,-500.0,0.00047123,120]
[335020231,1723746662136,-500.0,0.00047123,120]
[335020232,1723746662146,-500.0,0.00047123,120]
[335020233,1723746662156,-503.90450923,0.00047123,120]
[335020234,1723746662167,-500.0,0.00047123,120]
[335020235,1723746662176,-500.0,0.00047123,120]
[335020236,1723746662185,-500.0,0.00047123,120]
[335020237,1723746662195,-500.0,0.00047123,120]
[335020238,1723746662205,-500.0,0.00047123,120]
[335020239,1723746662215,-500.0,0.00047123,120]
[335020240,1723746662225,-502.33741563,0.00047123,120]
[335020241,1723746662234,-1103.72,0.00047123,120]
[335020242,1723746662247,-500.0,0.00047123,120]
[335020243,1723746662256,-500.0,0.00047123,120]
[335020244,1723746662266,-500.0,0.00047123,120]
[335020245,1723746662275,-730.6,0.00047123,120]
[335020246,1723746662285,-500.0,0.00047123,120]
[335020247,1723746662294,-500.0,0.00047123,120]
[335020248,1723746662307,-500.0,0.00047123,120]
[335020249,1723746662317,-302.02855473,0.00047123,120]
[335020250,1723746662327,-500.0,0.00047123,120]
[335020251,1723746662336,-500.0,0.00047123,120]
[335020252,1723746662346,-500.0,0.00047123,120]
[335020253,1723746662355,-500.0,0.00047123,120]
[335020254,1723746662365,-500.0,0.00047123,120]
[335020255,1723746662375,-506.75653981,0.00047123,120]
[335020256,1723746662385,-877.98,0.00047123,120]
[335020257,1723746662395,-500.0,0.00047123,120]
[335020258,1723746662405,-501.14263449,0.00047123,2]
[335020259,1723746662414,-500.0,0.00047123,120]
[335020260,1723746662423,-518.15476045,0.00047123,120]
[335020261,1723746662432,-554.88,0.00047123,120]
[335020262,1723746662441,-531.15,0.00047123,120]
[335020263,1723746662451,-500.0,0.00047123,120]
[335020264,1723746662460,-508.9412357,0.00047123,120]
[335020265,1723746662470,-500.0,0.00047123,120]
[335020266,1723746662479,-500.0,0.00047123,2]
[335020267,1723746662489,-500.0,0.00047123,120]
[335020268,1723746662502,-500.0,0.00047123,120]
[335020269,1723746662511,-500.0,0.00047123,120]
[335020270,1723746662521,-500.0,0.00047123,120]
[335020271,1723746662530,-500.0,0.00047123,120]
[335020272,1723746662539,-500.0,0.00047123,120]
[335020273,1723746662548,-500.0,0.00047123,120]
[335020274,1723746662557,-500.0,0.00047123,120]
[335020275,1723746662567,-500.0,0.00047123,120]
[335020276,1723746662576,-500.0,0.00047123,120]
[335020277,1723746662586,-514.28873313,0.00047123,120]
[335020278,1723746662595,-500.0,0.00047123,120]
[335020279,1723746662603,-500.0,0.00047123,120]
[335020280,1723746662613,-500.0,0.00047123,120]
[335020281,1723746662622,-500.0,0.00047123,120]
[335020282,1723746662631,-500.0,0.00047123,120]
[335020283,1723746662640,-689.79,0.00047123,120]
[335020284,1723746662650,-594.92,0.00047123,120]
[335020285,1723746662660,-500.0,0.00047123,120]
[335020286,1723746662670,-500.0,0.00047123,120]
[335020287,1723746662680,-572.19,0.00047123,120]
[335020288,1723746662689,-504.13968503,0.00047123,120]
[335020289,1723746662699,-500.0,0.00047123,120]
[335020290,1723746662708,-500.0,0.00047123,120]
[335020291,1723746662718,-500.0,0.00047123,120]
[335020292,1723746662727,-500.0,0.00047123,120]
[335020293,1723746662737,-504.15022488,0.00047123,120]
[335020294,1723746662748,-500.0,0.00047123,120]
[335020295,1723746662757,-500.0,0.00047123,120]
[335020296,1723746662767,-500.0,0.00047123,120]
[335020297,1723746662776,-500.0,0.00047123,120]
[335020298,1723746662785,-500.0,0.00047123,120]
[335020299,1723746662794,-624.35,0.00047123,120]
[335020300,1723746662804,-500.0,0.00047123,120]
[335020301,1723746662813,-670.38,0.00047123,120]
[335020302,1723746662823,-447.50673484,0.00047123,120]
[335020303,1723746662832,-505.9565507,0.00047123,120]
[335020304,1723746662842,-500.0,0.00047123,120]
[335020305,1723746662852,-500.0,0.00047123,120]
[335020306,1723746662861,-500.0,0.00047123,120]
[335020307,1723746662871,-500.0,0.00047123,120]
[335020308,1723746662880,-500.0,0.00047123,120]
[335020309,1723746662890,-504.02422461,0.00047123,120]
[335020310,1723746662899,-500.0,0.00047123,120]
[335020311,1723746662909,-500.0,0.00047123,120]
[335020312,1723746662971,-579.3,0.00047123,120]
[335020313,1723746662982,-500.0,0.00047123,120]
[335020314,1723746662997,-500.0,0.00047123,120]
[335020315,1723746663007,-503.34967199,0.00047123,120]
[335020316,1723746663017,-505.56303483,0.00047123,120]
[335020317,1723746663027,-500.0,0.00047123,120]
[335020318,1723746663037,-534.34,0.00047123,120]
[335020319,1723746663046,-582.11,0.00047123,120]
[335020320,1723746663056,-500.0,0.00047123,120]
[335020321,1723746663066,-1073.3,0.00047123,120]
[335020322,1723746663077,-500.0,0.00047123,120]
[335020323,1723746663088,-500.0,0.00047123,120]
[335020324,1723746663098,-500.0,0.00047123,120]
[335020325,1723746663108,-500.0,0.00047123,120]
[335020326,1723746663118,-500.0,0.00047123,120]
[335020327,1723746663129,-368.89489272,0.00047123,120]
[335020328,1723746663138,-500.0,0.00047123,120]
[335020329,1723746663148,-500.0,0.00047123,120]
[335020330,1723746663158,-500.0,0.00047123,120]
[335020331,1723746663167,-500.0,0.00047123,120]
[335020332,1723746663177,-500.0,0.00047123,120]
[335020333,1723746663187,-500.0,0.00047123,120]
[335020334,1723746663197,-500.0,0.00047123,120]
[335020335,1723746663207,-500.0,0.00047123,120]
[335020336,1723746663216,-509.95260253,0.00047123,120]
[335020337,1723746663226,-500.0,0.00047123,120]
[335020338,1723746663236,-500.0,0.00047123,120]
[335020339,1723746663251,-500.0,0.00047123,120]
[335020340,1723746663262,-500.0,0.00047123,120]
[335020341,1723746663271,-588.61,0.00047123,120]
[335020342,1723746663280,-500.0,0.00047123,120]
[335020343,1723746663291,-500.0,0.00047123,120]
[335020344,1723746663304,-500.0,0.00047123,120]
[335020345,1723746663313,-500.0,0.00047123,120]
[335020346,1723746663323,-500.0,0.00047123,120]
[335020347,1723746663333,-500.0,0.00047123,120]
[335020348,1723746663343,-500.0,0.00047123,120]
[335020349,1723746663353,-507.02549008,0.00047123,120]
[335020350,1723746663363,-1183.46,0.00047123,120]
[335020351,1723746663373,-533.15,0.00047123,120]
[335020352,1723746663383,-500.0,0.00047123,120]
[335020353,1723746663392,-500.0,0.00047123,120]
[335020354,1723746663402,-500.0,0.00047123,120]
[335020355,1723746663412,-500.0,0.00047123,120]
[335020356,1723746663421,-500.0,0.00047123,120]
[335020357,1723746663431,-500.0,0.00047123,120]
[335020358,1723746663441,-500.0,0.00047123,120]
[335020359,1723746663450,-681.71,0.00047123,120]
[335020360,1723746663459,-500.0,0.00047123,120]
[335020361,1723746663469,-500.0,0.00047123,120]
[335020362,1723746663478,-449.76845672,0.00047123,120]
[335020363,1723746663487,-500.0,0.00047123,2]
[335020364,1723746663501,-500.0,0.00047123,120]
[335020365,1723746663510,-500.0,0.00047123,120]
[335020366,1723746663519,-711.77,0.00047123,120]
[335020367,1723746663529,-500.0,0.00047123,120]
[335020368,1723746663539,-719.34,0.00047123,120]
[335020369,1723746663548,-500.0,0.00047123,120]
[335020370,1723746663558,-500.0,0.00047123,120]
[335020371,1723746663567,-500.0,0.00047123,120]
[335020372,1723746663577,-545.78,0.00047123,120]
[335020373,1723746663587,-500.0,0.00047123,120]
[335020374,1723746663597,-500.0,0.00047123,120]
[335020375,1723746663607,-711.98,0.00047123,120]
[335020376,1723746663617,-500.0,0.00047123,120]
[335020377,1723746663626,-500.0,0.00047123,120]
[335020378,1723746663636,-500.0,0.00047123,120]
[335020379,1723746663645,-506.90793806,0.00047123,120]
[335020380,1723746663655,-165.53920916,0.00047123,120]
[335020381,1723746664193,-334.46079084,0.00047123,120]
[335020382,1723746664203,-500.0,0.00047123,120]
[335020383,1723746664214,-500.0,0.00047123,120]
[335020384,1723746664224,-500.0,0.00047123,120]
[335020385,1723746664234,-516.69,0.00047123,120]
[335020386,1723746664245,-500.0,0.00047123,120]
[335020387,1723746664255,-500.0,0.00047123,120]
[335020388,1723746664266,-500.0,0.00047123,120]
[335020389,1723746664276,-500.0,0.00047123,120]
[335020390,1723746664286,-500.0,0.00047123,120]
[335020391,1723746664296,-500.0,0.00047123,120]
[335020392,1723746664311,-956.31,0.00047123,120]
[335020393,1723746664321,-500.0,0.00047123,120]
[335020394,1723746664331,-500.0,0.00047123,120]
[335020395,1723746664343,-500.0,0.00047123,120]
[335020396,1723746664353,-1144.59,0.00047123,120]
[335020397,1723746664363,-500.0,0.00047123,120]
[335020398,1723746664373,-500.0,0.00047123,120]
[335020399,1723746664384,-482.10948199,0.00047123,120]
[335020400,1723746664397,-71.61314926,0.00047123,120]
[335020401,1723746664407,-500.0,0.00047123,120]
[335020402,1723746664418,-500.0,0.00047123,120]
[335020403,1723746664428,-500.0,0.00047123,120]
[335020404,1723746664438,-500.0,0.00047123,120]
[335020405,1723746664448,-500.0,0.00047123,120]
[335020406,1723746664458,-500.0,0.00047123,120]
[335020407,1723746664467,-1749.62,0.00047123,120]
[335020408,1723746664477,-500.0,0.00047123,120]
[335020409,1723746664487,-500.0,0.00047123,120]
[335020410,1723746664501,-500.0,0.00047123,120]
[335020411,1723746664516,-500.0,0.00047123,120]
[335020412,1723746664526,-985.89,0.00047123,120]
[335020413,1723746664536,-500.0,0.00047123,120]
[335020414,1723746664545,-599.61,0.00047123,120]
[335020415,1723746664556,-407.06625247,0.00047123,120]
[335020416,1723746664566,-500.0,0.00047123,120]
[335020417,1723746664577,-1736.20059827,0.00047123,120]
[335020418,1723746664719,181.52414099,9.9e-05,2]
[335020419,1723746664747,-500.0,0.00046575,120]
[335020420,1723746664757,-151.0,0.00046575,14]
[335020421,1723746664766,-500.0,0.00046575,120]
[335020422,1723746664776,-450.10766545,0.00046575,120]
[335020423,1723746664785,-151.0,0.00046575,14]
[335020424,1723746664795,-151.0,0.00046575,14]
[335020425,1723746664804,-151.0,0.00046575,14]
[335020426,1723746664814,-282.152348,0.00046575,14]
[335020427,1723746664824,-506.8543704,0.00046849,120]
[335020428,1723746674859,273.37336231,9.9e-05,2]
[335020429,1723746715213,3080.88889929,9.9e-05,2]
[335020433,1723746730198,2111.27572321,9.9e-05,2]
[335020435,1723746753037,232.45588428,9.9e-05,2]
[335020436,1723746759300,3619.6667462,9.9e-05,2]
[335020522,1723747832361,-2130.99773778,0.00012356,2]
[335020523,1723747832371,-197.78705024,0.00012934,2]
[335020524,1723747832380,-174.59348,0.00014247,2]
[335020525,1723747832391,-150.0,0.00021,2]
[335020526,1723747832403,-6115.03357022,0.00024242,7]
[335020527,1723747832412,-300.0,0.00026573,2]
[335020528,1723747832422,-300.0,0.00026573,2]
[335020529,1723747832431,-407.30115449,0.0003,3]
[335020530,1723747832441,-178.49721722,0.0003,5]
[335020531,1723747832450,-9024.6892014,0.00031871,2]
[335020607,1723747839059,-2064.5252121,0.00031871,2]
[335020609,1723747839069,-162.811354,0.00032127,2]
[335020611,1723747839079,-162.972932,0.00032403,2]
[335020613,1723747839088,-246.5261746,0.00033073,2]
[335020615,1723747839097,-162.972981,0.0003323,2]
[335020617,1723747839106,-3000.0,0.00033498,2]
[335020618,1723747839116,-174.59348,0.00034703,2]
[335020620,1723747839126,-158.271091,0.00035616,120]
[335020622,1723747839135,-154.77557542,0.0004,4]
[335020624,1723747839144,-158.271091,0.00041553,120]
[335020626,1723747839155,-500.0,0.00045068,30]
[335020628,1723747839164,-749.42,0.00046465,30]
[335020630,1723747839174,-3599.74,0.00046465,3]
[335020632,1723747839183,-2999.78,0.00046465,3]
[335020634,1723747839193,-2499.82,0.00046465,3]
[335020636,1723747839203,-312.06005879,0.00046465,5]
[335020638,1723747839212,-1035.0255284,0.00046475,2]
[335020640,1723747839221,-79095.9863952,0.00046475,5]
[335020642,1723747839231,-1035.02552839,0.00046544,2]
[335020644,1723747839242,-312.06005879,0.00046564,5]
[335020646,1723747839252,-1248.24023516,0.00046565,5]
[335020648,1723747839261,-500.0,0.00046572,7]
[335020650,1723747839270,-500.0,0.00046572,120]
[335020652,1723747839279,-500.0,0.00046572,120]
[335020654,1723747839289,-500.0,0.00046572,31]
[335020656,1723747839299,-500.0,0.00046572,7]
[335020658,1723747839308,-500.0,0.00046572,7]
[335020660,1723747839317,-500.0,0.00046572,7]
[335020662,1723747839327,-500.0,0.00046572,7]
[335020664,1723747839336,-500.0,0.00046572,7]
[335020666,1723747839345,-500.0,0.00046572,7]
[335020668,1723747839354,-500.0,0.00046572,7]
[335020670,1723747839363,-500.0,0.00046572,7]
[335020672,1723747839373,-500.0,0.00046572,7]
[335020674,1723747839382,-500.0,0.00046572,7]
[335020676,1723747839392,-500.0,0.00046572,7]
[335020678,1723747839403,-500.0,0.00046572,7]
[335020680,1723747839417,-500.0,0.00046572,7]
[335020682,1723747839427,-500.0,0.00046572,7]
[335020683,1723747839437,-500.0,0.00046572,7]
[335020686,1723747839447,-500.0,0.00046572,7]
[335020687,1723747839456,-500.0,0.00046572,7]
[335020690,1723747839467,-500.0,0.00046572,7]
[335020691,1723747839476,-500.0,0.00046572,7]
[335020693,1723747839485,-500.0,0.00046572,7]
[335020695,1723747839494,-500.0,0.00046572,7]
[335020697,1723747839504,-500.0,0.00046572,7]
[335020699,1723747839513,-500.0,0.00046572,7]
[335020701,1723747839523,-500.0,0.00046572,7]
[335020703,1723747839532,-500.0,0.00046572,7]
[335020705,1723747839541,-500.0,0.00046572,7]
[335020707,1723747839550,-500.0,0.00046572,7]
[335020709,1723747839559,-500.0,0.00046572,7]
[335020711,1723747839570,-500.0,0.00046572,7]
[335020713,1723747839579,-557.70263492,0.00046572,7]
[335020715,1723747839589,-500.0,0.00046572,7]
[335020717,1723747839598,-500.0,0.00046572,7]
[335020719,1723747839607,-500.0,0.00046572,7]
[335020721,1723747839617,-500.0,0.00046572,7]
[335020723,1723747839626,-500.0,0.00046572,7]
[335020724,1723747839636,-500.0,0.00046572,7]
[335020726,1723747839646,-500.0,0.00046572,7]
[335020728,1723747839658,-500.0,0.00046572,7]
[335020730,1723747839668,-500.0,0.00046574,120]
[335020731,1723747839678,-168.86395762,0.00046574,120]
[335020732,1723747839689,-500.0,0.00046574,120]
[335020733,1723747839699,-500.0,0.00046574,120]
[335020735,1723747839708,-500.0,0.00046574,120]
[335020737,1723747839717,-500.0,0.00046574,120]
[335020739,1723747839728,-3339.10023134,0.00046575,61]
[335020741,1723747839737,-500.0,0.00046575,120]
[335020742,1723747839746,-500.0,0.00046575,120]
[335020743,1723747839755,-500.0,0.00046575,120]
[335020744,1723747839765,-500.0,0.00046575,120]
[335020745,1723747839775,-500.0,0.00046575,120]
[335020746,1723747839785,-480.72751861,0.00046575,120]
[335020747,1723747839794,-500.0,0.00046575,120]
[335020748,1723747839803,-500.0,0.00046575,120]
[335020749,1723747839812,-624.4,0.00046575,120]
[335020750,1723747839822,-500.0,0.00046575,120]
[335020751,1723747839831,-515.05213383,0.00046575,120]
[335020752,1723747839841,-500.0,0.00046575,120]
[335020753,1723747839851,-506.35,0.00046575,120]
[335020754,1723747839860,-500.0,0.00046575,120]
[335020755,1723747839870,-500.0,0.00046575,120]
[335020756,1723747839881,-500.0,0.00046575,120]
[335020757,1723747839890,-500.0,0.00046575,120]
[335020758,1723747839903,-500.0,0.00046575,120]
[335020759,1723747839912,-500.0,0.00046575,120]
[335020760,1723747839921,-500.0,0.00046575,120]
[335020761,1723747839930,-500.0,0.00046575,120]
[335020763,1723747839939,-500.0,0.00046575,120]
[335020764,1723747839948,-500.0,0.00046575,120]
[335020765,1723747839957,-500.0,0.00046575,120]
[335020766,1723747839966,-500.0,0.00046575,120]
[335020767,1723747839976,-500.0,0.00046575,120]
[335020768,1723747839985,-500.0,0.00046575,120]
[335020770,1723747839995,-500.0,0.00046575,120]
[335020771,1723747840005,-500.0,0.00046575,120]
[335020773,1723747840014,-500.0,0.00046575,120]
[335020775,1723747840024,-500.0,0.00046575,120]
[335020778,1723747840034,-472.90036459,0.00046575,120]
[335020780,1723747840043,-500.0,0.00046575,120]
[335020781,1723747840053,-500.0,0.00046575,120]
[335020783,1723747840063,-500.0,0.00046575,120]
[335020785,1723747840073,-500.0,0.00046575,120]
[335020786,1723747840082,-500.0,0.00046575,120]
[335020788,1723747840092,-500.0,0.00046575,120]
[335020789,1723747840102,-500.0,0.00046575,120]
[335020790,1723747840111,-517.1133128,0.00046575,120]
[335020792,1723747840121,-346.86238258,0.00046575,120]
[335020808,1723747840508,-156.8730635,0.00046575,120]
[335020810,1723747840518,-500.0,0.00046575,120]
[335020812,1723747840527,-500.0,0.00046575,120]
[335020814,1723747840537,-500.0,0.00046575,120]
[335020815,1723747840546,-500.0,0.00046575,120]
[335020816,1723747840556,-500.0,0.00046575,120]
[335020817,1723747840566,-500.0,0.00046575,120]
[335020818,1723747840576,-500.0,0.00046575,120]
[335020819,1723747840585,-500.0,0.00046575,120]
[335020821,1723747840595,-500.0,0.00046575,120]
[335020834,1723747840730,-500.0,0.00046575,120]
[335020836,1723747840740,-500.0,0.00046575,120]
[335020838,1723747840751,-502.5757839,0.00046575,120]
[335020840,1723747840761,-500.0,0.00046575,120]
[335020842,1723747840771,-500.0,0.00046575,120]
[335020844,1723747840780,-500.0,0.00046575,120]
[335020846,1723747840789,-500.0,0.00046575,120]
[335020848,1723747840799,-500.0,0.00046575,120]
[335020850,1723747840808,-561.5535722,0.00046575,120]
[335020852,1723747840818,-500.0,0.00046575,120]
[335020854,1723747840828,-500.0,0.00046575,120]
[335020856,1723747840838,-500.0,0.00046575,120]
[335020857,1723747840847,-500.0,0.00046575,120]
[335020860,1723747840857,-500.0,0.00046575,120]
[335020862,1723747840866,-478.36204651,0.00046575,120]
[335020864,1723747840876,-500.0,0.00046575,120]
[335020866,1723747840886,-500.0,0.00046575,120]
[335020868,1723747840895,-500.0,0.00046575,120]
[335020869,1723747840906,-500.0,0.00046575,120]
[335020871,1723747840915,-500.0,0.00046575,120]
[335020873,1723747840925,-500.0,0.00046575,120]
[335020875,1723747840935,-500.0,0.00046575,120]
[335020877,1723747840945,-768.23,0.00046575,120]
[335020879,1723747840955,-500.0,0.00046575,120]
[335020881,1723747840964,-639.28,0.00046575,120]
[335020883,1723747840975,-500.0,0.00046575,120]
[335020885,1723747840984,-500.0,0.00046575,120]
[335020887,1723747840994,-500.0,0.00046575,120]
[335020889,1723747841004,-560.33418583,0.00046575,120]
[335020891,1723747841013,-503.10120113,0.00046575,120]
[335020893,1723747841024,-500.0,0.00046575,120]
[335020895,1723747841034,-500.0,0.00046575,120]
[335020897,1723747841044,-500.0,0.00046575,120]
[335020899,1723747841054,-500.0,0.00046575,120]
[335020901,1723747841064,-990.85,0.00046575,120]
[335020903,1723747841073,-163.46781442,0.00046575,120]
[335020906,1723747841084,-500.0,0.00046575,120]
[335020908,1723747841094,-500.0,0.00046575,120]
[335020910,1723747841103,-500.0,0.00046575,120]
[335020912,1723747841114,-500.0,0.00046575,120]
[335020914,1723747841124,-500.0,0.00046575,120]
[335020916,1723747841133,-500.0,0.00046575,120]
[335020917,1723747841143,-500.0,0.00046575,120]
[335020919,1723747841155,-500.0,0.00046575,120]
[335020921,1723747841164,-506.08592036,0.00046575,120]
[335020923,1723747841174,-500.0,0.00046575,120]
[335020925,1723747841184,-500.0,0.00046575,120]
[335020926,1723747841194,-520.56,0.00046575,120]
[335020927,1723747841203,-500.0,0.00046575,120]
[335020928,1723747841212,-500.0,0.00046575,120]
[335020929,1723747841222,-221.25196166,0.00046575,120]
[335020930,1723747841232,-500.0,0.00046575,120]
[335020931,1723747841242,-500.0,0.00046575,120]
[335020932,1723747841252,-500.0,0.00046575,120]
[335020933,1723747841262,-500.0,0.00046575,120]
[335020934,1723747841271,-500.0,0.00046575,120]
[335020935,1723747841281,-500.0,0.00046575,120]
[335020936,1723747841291,-500.0,0.00046575,120]
[335020937,1723747841300,-500.0,0.00046575,120]
[335020938,1723747841309,-510.75429233,0.00046575,120]
[335020939,1723747841319,-500.0,0.00046575,2]
[335020940,1723747841328,-500.0,0.00046575,120]
[335020941,1723747841337,-500.0,0.00046575,120]
[335020942,1723747841347,-500.0,0.00046575,120]
[335020943,1723747841358,-500.0,0.00046575,120]
[335020944,1723747841368,-500.0,0.00046575,120]
[335020945,1723747841378,-567.14,0.00046575,120]
[335020946,1723747841388,-500.0,0.00046575,120]
[335020947,1723747841398,-500.0,0.00046575,120]
[335020948,1723747841409,-500.0,0.00046575,120]
[335020949,1723747841418,-586.58,0.00046575,120]
[335020950,1723747841428,-500.0,0.00046575,120]
[335020951,1723747841441,-939.13,0.00046575,120]
[335020952,1723747841450,-500.0,0.00046575,120]
[335020953,1723747841462,-500.0,0.00046575,120]
[335020954,1723747841471,-500.0,0.00046575,120]
[335020955,1723747841481,-500.0,0.00046575,120]
[335020956,1723747841491,-500.0,0.00046575,120]
[335020957,1723747841500,-527.72,0.00046575,120]
[335020958,1723747841509,-436.5184057,0.00046575,120]
[335020959,1723747841519,-530.18,0.00046575,120]
[335020960,1723747841528,-506.75545438,0.00046575,120]
[335020961,1723747841538,-500.0,0.00046575,120]
[335020962,1723747841547,-500.0,0.00046575,120]
[335020963,1723747841556,-500.0,0.00046575,120]
[335020964,1723747841566,-500.0,0.00046575,120]
[335020965,1723747841575,-500.0,0.00046575,120]
[335020966,1723747841584,-521.5,0.00046575,120]
[335020967,1723747841594,-535.86,0.00046575,120]
[335020968,1723747841603,-500.0,0.00046575,120]
[335020969,1723747841613,-442.59706221,0.00046575,120]
[335020970,1723747841623,-500.0,0.00046575,120]
[335020971,1723747841633,-500.0,0.00046575,7]
[335020972,1723747841642,-500.0,0.00046575,120]
[335020973,1723747841653,-500.0,0.00046575,120]
[335020974,1723747841664,-500.0,0.00046575,120]
[335020975,1723747841673,-500.0,0.00046575,120]
[335020976,1723747841683,-500.0,0.00046575,120]
[335020977,1723747841692,-500.0,0.00046575,120]
[335020978,1723747841704,-500.0,0.00046575,120]
[335020979,1723747841714,-500.0,0.00046575,120]
[335020980,1723747841723,-500.0,0.00046575,120]
[335020981,1723747841733,-500.0,0.00046575,120]
[335020982,1723747841742,-500.0,0.00046575,120]
[335020983,1723747841751,-500.0,0.00046575,120]
[335020984,1723747841761,-500.0,0.00046575,120]
[335020985,1723747841770,-1036.14,0.00046575,120]
[335020986,1723747841779,-500.0,0.00046575,120]
[335020987,1723747841789,-500.0,0.00046575,120]
[335020988,1723747841799,-500.0,0.00046575,120]
[335020989,1723747841809,-500.0,0.00046575,120]
[335020990,1723747841822,-500.0,0.00046575,120]
[335020991,1723747841832,-500.0,0.00046575,120]
[335020992,1723747841844,-500.0,0.00046575,120]
[335020993,1723747841854,-500.0,0.00046575,120]
[335020994,1723747841866,-500.0,0.00046575,120]
[335020995,1723747841876,-500.0,0.00046575,120]
[335020996,1723747841886,-500.0,0.00046575,120]
[335020997,1723747841896,-512.38963399,0.00046575,120]
[335020998,1723747841908,-622.54,0.00046575,120]
[335020999,1723747841917,-500.0,0.00046575,120]
[335021000,1723747841927,-500.0,0.00046575,120]
[335021001,1723747841939,-643.63,0.00046575,120]
[335021002,1723747841951,-500.0,0.00046575,120]
[335021003,1723747841962,-500.0,0.00046575,120]
[335021004,1723747841973,-500.0,0.00046575,120]
[335021005,1723747841982,-1594.73,0.00046575,120]
[335021006,1723747841991,-500.0,0.00046575,120]
[335021007,1723747842002,-650.26,0.00046575,120]
[335021008,1723747842013,-500.0,0.00046575,120]
[335021009,1723747842024,-500.0,0.00046575,120]
[335021010,1723747842035,-500.0,0.00046575,120]
[335021011,1723747842046,-500.0,0.00046575,120]
[335021012,1723747842056,-500.0,0.00046575,120]
[335021013,1723747842066,-572.56,0.00046575,120]
[335021014,1723747842075,-500.0,0.00046575,120]
[335021015,1723747842086,-500.0,0.00046575,120]
[335021016,1723747842096,-518.5,0.00046575,120]
[335021017,1723747842105,-500.0,0.00046575,120]
[335021018,1723747842115,-510.53,0.00046575,120]
[335021019,1723747842126,-883.49,0.00046575,120]
[335021020,1723747842135,-500.0,0.00046575,120]
[335021021,1723747842145,-500.0,0.00046575,120]
[335021022,1723747842157,-500.0,0.00046575,120]
[335021023,1723747842166,-503.29954195,0.00046575,120]
[335021024,1723747842175,-500.0,0.00046575,120]